bitfinex/quotes_BTCUSD_20250719
["timestamp","ask_amount","ask_price","bid_price","bid_amount"]
[1752903691749,0.81987602,118320.0,118310.0,0.22808551]
[1752903697933,0.81987602,118320.0,118310.0,0.23016551]
[1752903699325,0.69107602,118320.0,118310.0,0.23016551]
[1752903699542,0.81983602,118320.0,118310.0,0.23016551]
[1752903702192,0.05194495,118320.0,118310.0,0.94298857]
[1752903702403,0.05194495,118320.0,118310.0,0.96834481]
[1752903702607,0.05194495,118320.0,118310.0,0.80044815]
[1752903702977,0.04494495,118320.0,118310.0,0.88495843]
[1752903703149,0.04494495,118320.0,118310.0,0.79944815]
[1752903703504,0.04594495,118320.0,118310.0,0.79944815]
[1752903704364,0.03594495,118320.0,118310.0,0.79844815]
[1752903704579,0.03694495,118320.0,118310.0,0.79844815]
[1752903711286,0.03694495,118320.0,118310.0,1.07723309]
[1752903711693,0.03694495,118320.0,118310.0,0.88395843]
[1752903712446,0.03494495,118320.0,118310.0,0.88395843]
[1752903712826,0.0002,118330.0,118310.0,0.88395843]
[1752903712827,0.0002,118330.0,118320.0,0.20892808]
[1752903713056,0.0002,118330.0,118320.0,0.79293249]
[1752903713264,0.0002,118330.0,118320.0,0.79610249]
[1752903713471,0.0002,118330.0,118320.0,0.82147749]
[1752903714058,0.02128703,118330.0,118320.0,1.01475215]
[1752903714269,0.0002,118330.0,118320.0,1.01475215]
[1752903714600,0.0012,118330.0,118320.0,1.01475215]
[1752903716525,0.0022,118330.0,118320.0,1.01475215]
[1752903718549,0.02309117,118330.0,118320.0,1.01475215]
[1752903723087,0.01539117,118330.0,118320.0,1.01475215]
[1752903723309,0.00864965,118340.0,118330.0,0.24161165]
[1752903723524,0.00873383,118340.0,118330.0,0.84469059]
[1752903723748,0.00873383,118340.0,118330.0,0.84763059]
[1752903723972,0.01718362,118340.0,118330.0,0.87300559]
[1752903724402,0.00873383,118340.0,118330.0,0.87300559]
[1752903724625,0.03263349,118340.0,118330.0,0.86555515]
[1752903724919,0.04363349,118340.0,118330.0,0.87500573]
[1752903725107,0.06417628,118340.0,118330.0,0.87500573]
[1752903725467,0.05572641,118340.0,118330.0,0.88345617]
[1752903726546,0.05572641,118340.0,118330.0,0.87500573]
[1752903726703,0.05572641,118340.0,118330.0,0.86655515]
[1752903726704,0.06417635,118340.0,118330.0,0.86655515]
[1752903727162,0.05572641,118340.0,118330.0,0.86655515]
[1752903727342,0.06417628,118340.0,118330.0,0.87500573]
[1752903727671,0.03882704,118340.0,118330.0,0.88345617]
[1752903739744,0.03895373,118340.0,118330.0,0.88345617]
[1752903740794,0.03882704,118340.0,118330.0,0.88332948]
[1752903741009,0.03882704,118340.0,118330.0,0.96883976]
[1752903741222,0.03882704,118340.0,118330.0,1.16211442]
[1752903741868,0.03882704,118340.0,118330.0,1.50211442]
[1752903742083,0.03882704,118340.0,118330.0,1.50111442]
[1752903742301,0.03182704,118340.0,118330.0,1.50111442]
[1752903742517,0.01128418,118340.0,118330.0,1.50111442]
[1752903742959,0.00028418,118340.0,118330.0,1.50011442]
[1752903747763,0.01292116,118340.0,118330.0,1.50011442]
[1752903749762,0.01292116,118340.0,118330.0,0.92029044]
[1752903749981,0.01292116,118340.0,118330.0,1.50011442]
[1752903761828,0.01292116,118340.0,118330.0,0.58017044]
[1752903762035,0.01501116,118340.0,118330.0,0.93401976]
[1752903762240,0.02346088,118340.0,118330.0,0.91947891]
[1752903762447,0.03101116,118340.0,118330.0,0.54162046]
[1752903762654,0.03946081,118340.0,118330.0,0.74943597]
[1752903762861,0.0479106,118340.0,118330.0,0.74943597]
[1752903763495,0.03946081,118340.0,118330.0,0.74943597]
[1752903763707,0.0479106,118340.0,118330.0,0.74943597]
[1752903763933,0.03946081,118340.0,118330.0,0.74943597]
[1752903764150,0.03946081,118340.0,118330.0,0.83519559]
[1752903765126,0.01501116,118340.0,118330.0,0.83519559]
[1752903765341,0.01292116,118340.0,118330.0,1.06493025]
[1752903765778,0.01292116,118340.0,118330.0,0.87165559]
[1752903766218,0.01292116,118340.0,118330.0,0.95716587]
[1752903769691,0.01292116,118340.0,118330.0,1.15044053]
[1752903770131,0.01292116,118340.0,118330.0,0.95716587]
[1752903770883,0.01292116,118340.0,118330.0,1.15044053]
[1752903771111,0.01292116,118340.0,118330.0,1.21821704]
[1752903771328,0.01292116,118340.0,118330.0,1.26821704]
[1752903771541,0.01292116,118340.0,118330.0,1.20044053]
[1752903773146,0.01292116,118340.0,118330.0,1.00716587]
[1752903773567,0.01292116,118340.0,118330.0,1.20044053]
[1752903774449,0.01292116,118340.0,118330.0,0.62061655]
[1752903774674,0.01292116,118340.0,118330.0,1.20044053]
[1752903780333,0.01292116,118340.0,118330.0,1.00716587]
[1752903784568,0.03181046,118340.0,118330.0,0.66559553]
[1752903784790,0.24300582,118340.0,118330.0,0.25893469]
[1752903785002,0.23455595,118340.0,118330.0,0.58256935]
[1752903786342,0.23455595,118340.0,118330.0,0.77584401]
[1752903787162,0.23455595,118340.0,118330.0,0.58256935]
[1752903787950,0.22610587,118340.0,118330.0,0.58256935]
[1752903788611,0.22610587,118340.0,118330.0,0.77584401]
[1752903789762,0.22610587,118340.0,118330.0,0.58256935]
[1752903790178,0.21765572,118340.0,118330.0,0.58256935]
[1752903790865,0.21765572,118340.0,118330.0,0.77584401]
[1752903791070,0.21621572,118340.0,118330.0,0.77584401]
[1752903792790,0.21621572,118340.0,118330.0,0.60682517]
[1752903792992,0.21621572,118340.0,118330.0,0.77584401]
[1752903794283,0.21621572,118340.0,118330.0,0.58256935]
[1752903795289,0.21621572,118340.0,118330.0,0.38929469]
[1752903795491,0.21621572,118340.0,118330.0,0.58256935]
[1752903795699,0.21621572,118340.0,118330.0,0.77584401]
[1752903797350,0.21621572,118340.0,118330.0,0.38929469]
[1752903797561,0.21621572,118340.0,118330.0,0.58256935]
[1752903798586,0.21621572,118340.0,118330.0,0.77584401]
[1752903800373,0.19991572,118340.0,118330.0,0.77584401]
[1752903806447,0.19991572,118340.0,118330.0,0.38929469]
[1752903806667,0.19991572,118340.0,118330.0,0.77584401]
[1752903807481,0.18727874,118340.0,118330.0,0.77584401]
[1752903807683,0.17127874,118340.0,118330.0,0.77584401]
[1752903807884,0.17127874,118340.0,118330.0,0.77889401]
[1752903809656,0.17127874,118340.0,118330.0,0.39234469]
[1752903809894,0.17127874,118340.0,118330.0,0.77889401]
[1752903811441,0.17972889,118340.0,118330.0,0.77889401]
[1752903813778,0.18722029,118340.0,118330.0,0.77889401]
[1752903815225,0.18722029,118340.0,118330.0,0.78099401]
[1752903817105,0.18722029,118340.0,118330.0,0.88215363]
[1752903817335,0.18523029,118340.0,118330.0,0.88215363]
[1752903817552,0.0331251,118340.0,118330.0,0.91415522]
[1752903817879,0.02467509,118340.0,118330.0,0.91415522]
[1752903818083,0.04157518,118340.0,118330.0,0.91415529]
[1752903818292,0.03312503,118340.0,118330.0,0.91415529]
[1752903818496,0.04157511,118340.0,118330.0,0.81994488]
[1752903818910,0.04157511,118340.0,118330.0,0.82839567]
[1752903819117,0.04157511,118340.0,118330.0,0.83684639]
[1752903819396,0.04157511,118340.0,118330.0,0.82839567]
[1752903819611,0.04157511,118340.0,118330.0,0.83684639]
[1752903819755,0.04157504,118340.0,118330.0,0.83684639]
[1752903820285,0.04157504,118340.0,118330.0,0.82839567]
[1752903820483,0.20213017,118340.0,118330.0,0.81149401]
[1752903821392,0.20213017,118340.0,118330.0,0.81994495]
[1752903821609,0.04157583,118340.0,118330.0,0.81994495]
[1752903821949,0.04157583,118340.0,118330.0,0.82839582]
[1752903822769,0.04157583,118340.0,118330.0,0.83684647]
[1752903822770,0.02467524,118340.0,118330.0,0.83684647]
[1752903822988,0.02467517,118340.0,118330.0,0.92260609]
[1752903823423,0.03312518,118340.0,118330.0,0.83684647]
[1752903823660,0.03312518,118340.0,118330.0,0.83684654]
[1752903824077,0.03312518,118340.0,118330.0,0.83684661]
[1752903824298,0.21057982,118340.0,118330.0,0.81149401]
[1752903824509,0.21903004,118340.0,118330.0,0.81994495]
[1752903824719,0.21903004,118340.0,118330.0,0.81149401]
[1752903825147,0.05002548,118340.0,118330.0,0.81994495]
[1752903825890,0.04157526,118340.0,118330.0,0.81994488]
[1752903826104,0.05002548,118340.0,118330.0,0.81149401]
[1752903826318,0.05002548,118340.0,118330.0,0.81994495]
[1752903826772,0.21903004,118340.0,118330.0,0.82839582]
[1752903826976,0.21903004,118340.0,118330.0,0.81149401]
[1752903826977,0.05002548,118340.0,118330.0,0.81149401]
[1752903827359,0.21903004,118340.0,118330.0,0.81149401]
[1752903827514,0.21903004,118340.0,118330.0,0.81994495]
[1752903827928,0.21058032,118340.0,118330.0,0.81149401]
[1752903828573,0.21058032,118340.0,118330.0,0.81994495]
[1752903828801,0.21058032,118340.0,118330.0,0.81149401]
[1752903829268,0.21058032,118340.0,118330.0,0.81994495]
[1752903829714,0.21058032,118340.0,118330.0,0.81149401]
[1752903831951,0.20213045,118340.0,118330.0,0.79639401]
[1752903834644,0.20213045,118340.0,118330.0,0.40984469]
[1752903834861,0.20213045,118340.0,118330.0,0.79639401]
[1752903839505,0.0331256,118340.0,118330.0,0.80484488]
[1752903839863,0.0331256,118340.0,118330.0,0.80484495]
[1752903840062,0.00777558,118340.0,118330.0,0.90640457]
[1752903840270,0.00777558,118340.0,118330.0,1.12503119]
[1752903843063,0.00777558,118340.0,118330.0,1.21054147]
[1752903863639,0.00777558,118340.0,118330.0,1.08018147]
[1752903863825,0.00777558,118340.0,118330.0,1.12442185]
[1752903872360,0.00028418,118340.0,118330.0,1.12442185]
[1752903875639,0.00799315,118340.0,118330.0,1.12442185]
[1752903888786,0.00799315,118340.0,118330.0,1.10810185]
[1752903889419,0.00995315,118340.0,118330.0,0.38339787]
[1752903889630,0.02495315,118340.0,118330.0,0.92623723]
[1752903890075,0.04880273,118340.0,118330.0,0.4052765]
[1752903890280,0.05869245,118340.0,118330.0,0.80872691]
[1752903890486,0.06714232,118340.0,118330.0,0.80872691]
[1752903890719,0.05869245,118340.0,118330.0,0.80872691]
[1752903890997,0.06714224,118340.0,118330.0,0.80872691]
[1752903891445,0.05869238,118340.0,118330.0,0.80872691]
[1752903891661,0.07559204,118340.0,118330.0,0.67928691]
[1752903891863,0.07559197,118340.0,118330.0,0.81717742]
[1752903892008,0.0671421,118340.0,118330.0,0.81717742]
[1752903893282,0.05869238,118340.0,118330.0,0.81717742]
[1752903894301,0.06714217,118340.0,118330.0,0.81717742]
[1752903895248,0.0671421,118340.0,118330.0,0.81717742]
[1752903895454,0.0657021,118340.0,118330.0,0.81717742]
[1752903895999,0.05725238,118340.0,118330.0,0.81717742]
[1752903896215,0.04880273,118340.0,118330.0,0.81717742]
[1752903897069,0.05725245,118340.0,118330.0,0.81717742]
[1752903897362,0.05725238,118340.0,118330.0,0.81717742]
[1752903898293,0.04880273,118340.0,118330.0,0.81717742]
[1752903899130,0.02495315,118340.0,118330.0,0.81717742]
[1752903899344,0.00995315,118340.0,118330.0,1.0991717]
[1752903899596,0.00799315,118340.0,118330.0,1.21947198]
[1752903901679,0.00028418,118340.0,118330.0,1.21947198]
[1752903904233,0.00799813,118340.0,118330.0,1.21947198]
[1752903910327,0.00799813,118340.0,118330.0,0.639648]
[1752903910537,0.00799813,118340.0,118330.0,1.21947198]
[1752903912231,0.00799813,118340.0,118330.0,1.20317198]
[1752903912462,0.00799813,118340.0,118330.0,1.11741236]
[1752903913005,0.00799813,118340.0,118330.0,1.13241236]
[1752903915472,0.00799813,118340.0,118330.0,0.53758838]
[1752903915673,0.00799813,118340.0,118330.0,1.11741236]
[1752903917401,0.00997813,118340.0,118330.0,0.7478961]
[1752903917605,0.03422771,118340.0,118330.0,0.89403719]
[1752903918016,0.04267743,118340.0,118330.0,0.89403719]
[1752903918162,0.05957738,118340.0,118330.0,0.89403719]
[1752903918794,0.0511273,118340.0,118330.0,0.89403719]
[1752903918992,0.05957731,118340.0,118330.0,0.90883988]
[1752903920139,0.0511273,118340.0,118330.0,0.90883988]
[1752903920348,0.0511273,118340.0,118330.0,0.91179988]
[1752903920952,0.0511273,118340.0,118330.0,0.89699719]
[1752903921189,0.03532722,118340.0,118330.0,0.89699719]
[1752903921370,0.24458229,118340.0,118330.0,0.88550682]
[1752903921970,0.24458229,118340.0,118330.0,0.89395747]
[1752903922910,0.24458229,118340.0,118330.0,0.50740815]
[1752903923122,0.24458279,118340.0,118330.0,0.79999632]
[1752903923334,0.237573,118340.0,118330.0,0.79999646]
[1752903923478,0.236133,118340.0,118330.0,0.79999646]
[1752903923683,0.22768306,118340.0,118330.0,0.79999646]
[1752903923963,0.21923291,118340.0,118330.0,0.79154574]
[1752903924557,0.21923291,118340.0,118330.0,0.79999646]
[1752903924736,0.21923291,118340.0,118330.0,0.80844711]
[1752903925962,0.05867836,118340.0,118330.0,0.90265731]
[1752903926575,0.22768292,118340.0,118330.0,0.90265731]
[1752903927133,0.22768292,118340.0,118330.0,0.81689769]
[1752903928533,0.21188292,118340.0,118330.0,0.81689769]
[1752903929450,0.21188292,118340.0,118330.0,0.80844711]
[1752903930188,0.21188292,118340.0,118330.0,0.81689769]
[1752903930411,0.04287836,118340.0,118330.0,0.81689769]
[1752903930630,0.04287836,118340.0,118330.0,0.89420637]
[1752903930979,0.21188292,118340.0,118330.0,0.89420637]
[1752903932028,0.21188292,118340.0,118330.0,0.79154552]
[1752903932285,0.21188292,118340.0,118330.0,0.79999617]
[1752903933773,0.20343291,118340.0,118330.0,0.78309495]
[1752903934032,0.19498269,118340.0,118330.0,0.79154582]
[1752903934286,0.19498269,118340.0,118330.0,0.80844733]
[1752903934949,0.19498269,118340.0,118330.0,0.79154582]
[1752903935175,0.19498269,118340.0,118330.0,0.78309495]
[1752903935630,0.19498269,118340.0,118330.0,0.77464401]
[1752903935851,0.19498269,118340.0,118330.0,0.60562517]
[1752903936129,0.21078269,118340.0,118330.0,0.21907585]
[1752903936358,0.21222269,118340.0,118330.0,0.41235051]
[1752903937034,0.21222269,118340.0,118330.0,0.36235051]
[1752903937262,0.21222269,118340.0,118330.0,0.55562517]
[1752903937453,0.20450874,118340.0,118330.0,0.16907585]
[1752903937715,0.20450874,118340.0,118330.0,0.36235051]
[1752903940054,0.20306874,118340.0,118330.0,0.36235051]
[1752903941507,0.20306874,118340.0,118330.0,0.55562517]
[1752903942077,0.20306874,118340.0,118330.0,0.64138479]
[1752903942734,0.20306874,118340.0,118330.0,0.55562517]
[1752903944145,0.20306874,118340.0,118330.0,0.16907585]
[1752903944370,0.20306874,118340.0,118330.0,0.55562517]
[1752903944775,0.18726874,118340.0,118330.0,0.55562517]
[1752903948062,0.18726874,118340.0,118330.0,0.42646517]
[1752903948270,0.18726874,118340.0,118330.0,0.55562517]
[1752903948913,0.20286874,118340.0,118330.0,0.36235051]
[1752903950935,0.20286874,118340.0,118330.0,0.55562517]
[1752903951702,0.18726874,118340.0,118330.0,0.55562517]
[1752903961591,0.17126874,118340.0,118330.0,0.55562517]
[1752903961776,0.17126874,118340.0,118330.0,0.55867517]
[1752903965549,0.17126874,118340.0,118330.0,0.17212585]
[1752903965762,0.17126874,118340.0,118330.0,0.55867517]
[1752903966611,0.20276874,118340.0,118330.0,0.36235051]
[1752903966823,0.37403864,118340.0,118330.0,0.03991585]
[1752903967025,0.28971902,118340.0,118330.0,0.33697551]
[1752903967890,0.28971902,118340.0,118330.0,0.01454085]
[1752903968111,0.82299368,118340.0,118330.0,0.01454085]
[1752903968342,0.62971902,118340.0,118330.0,0.01454085]
[1752903968554,0.64071902,118340.0,118330.0,0.01454085]
[1752903969183,0.64071902,118340.0,118330.0,0.20781551]
[1752903969390,0.62971902,118340.0,118330.0,0.20781551]
[1752903969602,0.20826963,118330.0,118320.0,0.01660138]
[1752903969814,0.42293991,118330.0,118320.0,0.20987604]
[1752903970019,0.42635991,118330.0,118320.0,0.20987604]
[1752903973480,0.42635991,118330.0,118320.0,0.01660138]
[1752903973627,0.80067149,118330.0,118320.0,0.01660138]
[1752903973829,0.80067149,118330.0,118320.0,0.20987604]
[1752903973830,1.30067149,118330.0,118320.0,0.20987604]
[1752903974206,1.31167149,118330.0,118320.0,0.20987604]
[1752903974412,1.31167149,118330.0,118320.0,0.01660138]
[1752903974660,1.31167149,118330.0,118320.0,0.20987604]
[1752903976394,1.31167149,118330.0,118320.0,0.01660138]
[1752903976805,1.31167149,118330.0,118320.0,0.20987604]
[1752903977979,1.27735991,118330.0,118320.0,0.20987604]
[1752903981846,1.27735991,118330.0,118320.0,0.01660138]
[1752903982066,1.27735991,118330.0,118320.0,0.20987604]
[1752903982670,1.27591991,118330.0,118320.0,0.20987604]
[1752903984557,1.27691991,118330.0,118320.0,0.20987604]
[1752903985636,1.26141991,118330.0,118320.0,0.01660138]
[1752903985836,1.26141991,118330.0,118320.0,0.20987604]
[1752903986040,1.26141991,118330.0,118320.0,0.01660138]
[1752903986358,1.26141991,118330.0,118320.0,0.20987604]
[1752903986653,1.34717953,118330.0,118320.0,0.20987604]
[1752903987041,1.26141991,118330.0,118320.0,0.20987604]
[1752904003376,1.24611991,118330.0,118320.0,0.20987604]
[1752904011769,1.24611991,118330.0,118320.0,0.22627604]
[1752904020426,1.24611991,118330.0,118320.0,0.03300138]
[1752904020682,1.24611991,118330.0,118320.0,0.22627604]
[1752904021014,1.33187953,118330.0,118320.0,0.22627604]
[1752904021216,1.33187953,118330.0,118320.0,0.03300138]
[1752904021386,1.33187953,118330.0,118320.0,0.22627604]
[1752904023322,1.33187953,118330.0,118320.0,0.03300138]
[1752904023532,1.54319419,118330.0,118320.0,0.01660138]
[1752904023757,1.57022086,118330.0,118320.0,0.01660138]
[1752904024092,1.58532086,118330.0,118320.0,0.01660138]
[1752904024505,1.55829419,118330.0,118320.0,0.01660138]
[1752904025169,1.54319419,118330.0,118320.0,0.01660138]
[1752904025397,1.54175419,118330.0,118320.0,0.01660138]
[1752904025816,1.45599457,118330.0,118320.0,0.01660138]
[1752904027161,0.95599457,118330.0,118320.0,0.01660138]
[1752904029570,0.93939457,118330.0,118320.0,0.01660138]
[1752904032048,0.95529457,118330.0,118320.0,0.01660138]
[1752904032440,0.95673457,118330.0,118320.0,0.01660138]
[1752904032591,1.04249419,118330.0,118320.0,0.01660138]
[1752904033577,1.03149419,118330.0,118320.0,0.01660138]
[1752904033992,1.04749419,118330.0,118320.0,0.01760138]
[1752904034172,0.85321953,118330.0,118320.0,0.01760138]
[1752904034411,1.05205419,118330.0,118320.0,0.01860138]
[1752904036972,1.03615419,118330.0,118320.0,0.01860138]
[1752904047103,1.03759419,118330.0,118320.0,0.01860138]
[1752904047706,1.03615419,118330.0,118320.0,0.01860138]
[1752904057021,1.03615419,118330.0,118320.0,0.03510138]
[1752904058044,0.95039457,118330.0,118320.0,0.03510138]
[1752904062424,0.95039457,118330.0,118320.0,0.01860138]
[1752904064085,0.95039457,118330.0,118320.0,0.03490138]
[1752904068488,0.95039457,118330.0,118320.0,0.05291138]
[1752904068489,0.62597991,118330.0,118320.0,0.05291138]
[1752904068723,0.0009,118330.0,118320.0,1.64129061]
[1752904068932,0.0009,118330.0,118320.0,1.75030832]
[1752904069141,0.00028418,118340.0,118330.0,0.61222012]
[1752904069390,0.00028418,118340.0,118330.0,0.61423012]
[1752904069611,0.00028418,118340.0,118330.0,0.61741012]
[1752904069841,0.00028418,118340.0,118330.0,0.64278112]
[1752904070066,0.00028418,118340.0,118330.0,0.88182753]
[1752904070756,0.00028418,118340.0,118330.0,1.08964304]
[1752904070981,0.01677561,118360.0,118350.0,0.2088788]
[1752904071204,0.00832739,118360.0,118350.0,0.75723812]
[1752904071425,0.00832739,118360.0,118350.0,0.81186614]
[1752904071646,0.00832739,118360.0,118350.0,0.83723514]
[1752904071866,0.01677554,118360.0,118350.0,0.83723514]
[1752904072528,0.00832739,118360.0,118350.0,0.83723514]
[1752904072752,0.00832739,118360.0,118350.0,0.84923514]
[1752904072982,0.00832739,118360.0,118350.0,0.46268582]
[1752904073217,0.00832739,118360.0,118350.0,0.8479901]
[1752904073672,0.01677554,118360.0,118350.0,0.8479901]
[1752904073907,0.0346722,118360.0,118350.0,0.85699024]
[1752904074143,0.02622376,118360.0,118350.0,0.85699024]
[1752904074349,0.02622376,118360.0,118350.0,0.86543932]
[1752904074778,0.02622376,118360.0,118350.0,0.87388833]
[1752904075110,0.02622376,118360.0,118350.0,0.86543932]
[1752904075315,0.02622376,118360.0,118350.0,0.87388833]
[1752904076475,0.01777554,118360.0,118350.0,0.87388833]
[1752904077641,0.01777554,118360.0,118350.0,0.86543932]
[1752904077900,0.01777554,118360.0,118350.0,0.87388833]
[1752904078284,0.01777554,118360.0,118350.0,0.86543932]
[1752904078509,0.02622384,118360.0,118350.0,0.86543932]
[1752904078945,0.02622384,118360.0,118350.0,0.85699024]
[1752904079218,0.02622384,118360.0,118350.0,0.86543932]
[1752904079461,0.01777554,118360.0,118350.0,0.86543925]
[1752904079650,0.02622376,118360.0,118350.0,0.86543932]
[1752904079859,0.01777554,118360.0,118350.0,0.87388833]
[1752904080074,0.01777554,118360.0,118350.0,0.86543932]
[1752904080273,0.01777554,118360.0,118350.0,0.87388833]
[1752904080752,0.00932739,118360.0,118350.0,0.87388833]
[1752904083189,0.00932739,118360.0,118350.0,1.15205075]
[1752904083563,0.00932739,118360.0,118350.0,0.95939861]
[1752904084565,0.00932739,118360.0,118350.0,0.85699039]
[1752904084758,0.00932739,118360.0,118350.0,0.8654394]
[1752904085361,0.01777554,118360.0,118350.0,0.8654394]
[1752904086075,0.00932739,118360.0,118350.0,0.8654394]
[1752904093029,0.00932739,118360.0,118350.0,0.86541794]
[1752904093797,0.0346722,118360.0,118350.0,0.85696893]
[1752904094005,0.04312057,118360.0,118350.0,0.856969]
[1752904094202,0.043121,118360.0,118350.0,0.84007048]
[1752904094405,0.01777561,118360.0,118350.0,0.86541815]
[1752904094795,0.01777554,118360.0,118350.0,0.86541815]
[1752904094994,0.01777554,118360.0,118350.0,0.86545689]
[1752904095498,0.00932739,118360.0,118350.0,0.86545689]
[1752904095649,0.01777554,118360.0,118350.0,0.86545689]
[1752904096995,0.02622384,118360.0,118350.0,0.86545689]
[1752904097234,0.02622376,118360.0,118350.0,0.86545689]
[1752904097451,0.01777554,118360.0,118350.0,0.86545689]
[1752904097653,0.02622376,118360.0,118350.0,0.86545689]
[1752904098060,0.02622376,118360.0,118350.0,0.85700788]
[1752904098206,0.02622376,118360.0,118350.0,0.86545689]
[1752904099497,0.01777554,118360.0,118350.0,0.86545689]
[1752904099723,0.01777554,118360.0,118350.0,0.47168632]
[1752904099936,0.02622384,118360.0,118350.0,0.87390597]
[1752904100136,0.01777554,118360.0,118350.0,0.87390597]
[1752904100358,0.02622391,118360.0,118350.0,0.87390597]
[1752904100584,0.02622384,118360.0,118350.0,0.87390597]
[1752904100928,0.01777554,118360.0,118350.0,0.87390597]
[1752904101161,0.02622384,118360.0,118350.0,0.87390597]
[1752904101377,0.01777554,118360.0,118350.0,0.87390597]
[1752904101758,0.02622384,118360.0,118350.0,0.87390597]
[1752904102298,0.01777554,118360.0,118350.0,0.87390597]
[1752904102957,0.02622384,118360.0,118350.0,0.87390597]
[1752904103160,0.02622384,118360.0,118350.0,0.86545696]
[1752904103471,0.02622384,118360.0,118350.0,0.87390597]
[1752904104095,0.03467228,118360.0,118350.0,0.84855866]
[1752904104327,0.02622384,118360.0,118350.0,0.86545703]
[1752904104582,0.03467228,118360.0,118350.0,0.86545703]
[1752904104845,0.02622384,118360.0,118350.0,0.87390618]
[1752904105071,0.02622384,118360.0,118350.0,0.87390589]
[1752904105300,0.02622384,118360.0,118350.0,0.87390546]
[1752904107084,0.02622384,118360.0,118350.0,0.86545645]
[1752904107482,0.02622384,118360.0,118350.0,0.87390546]
[1752904107698,0.02622384,118360.0,118350.0,0.86545645]
[1752904107972,0.02622384,118360.0,118350.0,0.87390546]
[1752904108183,0.02622384,118360.0,118350.0,0.86545645]
[1752904108643,0.02622376,118360.0,118350.0,0.87390546]
[1752904109957,0.03467213,118360.0,118350.0,0.87390546]
[1752904110164,0.02622376,118360.0,118350.0,0.87390546]
[1752904111988,0.04312057,118360.0,118350.0,0.85382773]
[1752904112121,0.03467206,118360.0,118350.0,0.84773589]
[1752904112336,0.21413744,118360.0,118350.0,0.24816928]
[1752904112559,0.21716744,118360.0,118350.0,0.72956084]
[1752904112779,0.20027077,118360.0,118350.0,0.72956084]
[1752904114343,0.21537077,118360.0,118350.0,0.72956084]
[1752904115454,0.23147077,118360.0,118350.0,0.36790978]
[1752904115888,0.31698105,118360.0,118350.0,0.36790978]
[1752904117709,0.31698105,118360.0,118350.0,0.046369]
[1752904118042,0.31698105,118360.0,118350.0,0.23902978]
[1752904118812,0.31698105,118360.0,118350.0,0.046369]
[1752904119010,0.31698105,118360.0,118350.0,0.23910139]
[1752904119638,0.34240274,118360.0,118350.0,0.23910139]
[1752904121031,0.34240274,118360.0,118350.0,0.21373239]
[1752904123129,0.34240274,118360.0,118350.0,0.021]
[1752904123342,0.34240274,118360.0,118350.0,0.21373239]
[1752904126569,0.34240274,118360.0,118350.0,0.021]
[1752904126783,0.34240274,118360.0,118350.0,0.21373239]
[1752904129398,0.34240274,118360.0,118350.0,0.021]
[1752904129606,0.34240274,118360.0,118350.0,0.21373239]
[1752904129840,0.68240274,118360.0,118350.0,0.021]
[1752904130044,0.68140274,118360.0,118350.0,0.012]
[1752904130464,0.68140274,118360.0,118350.0,0.014]
[1752904130670,0.68140274,118360.0,118350.0,0.002]
[1752904130822,0.68140274,118360.0,118350.0,0.003]
[1752904131814,0.87413513,118360.0,118350.0,0.003]
[1752904132391,0.84058605,118360.0,118350.0,0.003]
[1752904133012,0.64785366,118360.0,118350.0,0.003]
[1752904133478,0.84058605,118360.0,118350.0,0.003]
[1752904133688,0.64785366,118360.0,118350.0,0.003]
[1752904134751,0.67329204,118360.0,118350.0,0.003]
[1752904135197,0.68136418,118360.0,118350.0,0.003]
[1752904138972,0.87409657,118360.0,118350.0,0.003]
[1752904139253,0.68136418,118360.0,118350.0,0.003]
[1752904143059,0.68136418,118360.0,118350.0,0.00290772]
[1752904146131,0.68136418,118360.0,118350.0,0.19564011]
[1752904148707,0.81020418,118360.0,118350.0,0.19564011]
[1752904149247,0.79410418,118360.0,118350.0,0.19564011]
[1752904151467,0.79410418,118360.0,118350.0,0.00290772]
[1752904151653,0.79410418,118360.0,118350.0,0.19564011]
[1752904153286,0.98683657,118360.0,118350.0,0.00290772]
[1752904155786,1.07259619,118360.0,118350.0,0.00290772]
[1752904156886,0.98619857,118360.0,118350.0,0.00290772]
[1752904158043,0.98624322,118360.0,118350.0,0.00290772]
[1752904158426,0.98624322,118360.0,118340.0,0.01660138]
[1752904158641,0.95865232,118350.0,118340.0,0.01660138]
[1752904158918,0.96062232,118350.0,118340.0,0.01660138]
[1752904159301,1.04638194,118350.0,118340.0,0.01655673]
[1752904159501,1.09638194,118350.0,118340.0,0.01655673]
[1752904160430,1.10138194,118350.0,118340.0,0.01655673]
[1752904161967,1.09638194,118350.0,118340.0,0.01655673]
[1752904162328,1.10338194,118350.0,118340.0,0.01755673]
[1752904163524,1.11238194,118350.0,118340.0,0.01755673]
[1752904163841,1.10338194,118350.0,118340.0,0.01755673]
[1752904164149,1.11338194,118350.0,118340.0,0.01755673]
[1752904169218,0.92064955,118350.0,118340.0,0.01755673]
[1752904169625,1.11338194,118350.0,118340.0,0.01755673]
[1752904170685,0.83488993,118350.0,118340.0,0.01755673]
[1752904170903,1.02762232,118350.0,118340.0,0.01755673]
[1752904172517,1.02766985,118350.0,118340.0,0.01755673]
[1752904173640,1.02762232,118350.0,118340.0,0.0175092]
[1752904175008,1.02758232,118350.0,118340.0,0.0175092]
[1752904175436,1.11334194,118350.0,118340.0,0.0175092]
[1752904175883,1.06334194,118350.0,118340.0,0.0175092]
[1752904176068,1.11334194,118350.0,118340.0,0.0175092]
[1752904177033,1.06334194,118350.0,118340.0,0.0175092]
[1752904177439,1.04804194,118350.0,118340.0,0.0175092]
[1752904177648,1.09804194,118350.0,118340.0,0.0175092]
[1752904177987,1.04804194,118350.0,118340.0,0.0175092]
[1752904178182,1.09804194,118350.0,118340.0,0.0175092]
[1752904181687,0.88950955,118350.0,118340.0,0.0175092]
[1752904181893,0.99648232,118350.0,118340.0,0.0175092]
[1752904186332,1.0123041,118350.0,118340.0,0.0175092]
[1752904192280,1.01232536,118350.0,118340.0,0.0175092]
[1752904197272,0.81959297,118350.0,118340.0,0.0175092]
[1752904197490,0.83356536,118350.0,118340.0,0.0505092]
[1752904197695,0.63579297,118350.0,118340.0,0.0525992]
[1752904197905,0.74866993,118350.0,118340.0,0.24856159]
[1752904198332,0.94140232,118350.0,118340.0,0.0558292]
[1752904198773,0.74866993,118350.0,118340.0,0.0558292]
[1752904198973,0.61994993,118350.0,118340.0,0.0558292]
[1752904199255,0.74866993,118350.0,118340.0,0.0558292]
[1752904201009,0.83442955,118350.0,118340.0,0.0558292]
[1752904201224,1.02716194,118350.0,118340.0,0.0558292]
[1752904201856,0.94140232,118350.0,118340.0,0.0558292]
[1752904202880,0.81268232,118350.0,118340.0,0.0558292]
[1752904203095,0.94140232,118350.0,118340.0,0.0558292]
[1752904205759,0.94140232,118350.0,118340.0,0.0525992]
[1752904206220,0.94352232,118350.0,118340.0,0.0525992]
[1752904206437,1.03250194,118350.0,118340.0,0.0175092]
[1752904206648,1.25543433,118350.0,118340.0,0.0175092]
[1752904206833,1.32126427,118350.0,118340.0,0.0175092]
[1752904207010,1.12853188,118350.0,118340.0,0.0175092]
[1752904208055,1.32126427,118350.0,118340.0,0.0175092]
[1752904209875,1.12853188,118350.0,118340.0,0.0175092]